bitfinex-derivatives/quotes_BTCF0:USTF0_20210707
["timestamp","ask_amount","ask_price","bid_price","bid_amount"]
[1625621255023,3.61271257,34233.0,34232.0,1.5031401]
[1625621255202,2.23667001,34233.0,34232.0,2.69656421]
[1625621255442,2.23667001,34233.0,34232.0,1.5031401]
[1625621256223,2.23667001,34233.0,34232.0,2.9751267]
[1625621257063,2.23667001,34233.0,34232.0,1.7817601]
[1625621257366,2.23667001,34233.0,34232.0,2.97479547]
[1625621260431,2.23667001,34233.0,34232.0,1.7817601]
[1625621260551,2.23667001,34233.0,34232.0,1.5031401]
[1625621260733,2.47724545,34233.0,34232.0,1.5031401]
[1625621261151,2.47724545,34233.0,34232.0,2.70028496]
[1625621261451,2.47724545,34233.0,34232.0,1.5031401]
[1625621266201,2.49138612,34233.0,34232.0,1.5031401]
[1625621266440,2.49138612,34233.0,34232.0,1.50740403]
[1625621266922,1.28702603,34233.0,34232.0,2.70511234]
[1625621267881,1.28702603,34233.0,34232.0,1.50740403]
[1625621268304,1.28702603,34233.0,34232.0,2.70433617]
[1625621268611,1.28702603,34233.0,34232.0,1.50740403]
[1625621273122,1.28702603,34233.0,34232.0,2.70371873]
[1625621275706,1.28702603,34233.0,34232.0,1.50740403]
[1625621276905,1.28702603,34233.0,34232.0,2.70353214]
[1625621277024,1.28702603,34233.0,34232.0,2.92600214]
[1625621280211,1.28702603,34233.0,34232.0,6.48280214]
[1625621282495,1.28702603,34233.0,34232.0,2.92600214]
[1625621288927,2.49109303,34233.0,34232.0,2.92600214]
[1625621289047,2.54809303,34233.0,34232.0,2.92600214]
[1625621289169,2.54809303,34233.0,34232.0,2.70353214]
[1625621289527,2.54809303,34233.0,34232.0,2.4629567]
[1625621289711,3.92430612,34233.0,34232.0,1.26682859]
[1625621289950,3.92430612,34233.0,34232.0,0.24483937]
[1625621290849,3.92430612,34233.0,34232.0,5.36413937]
[1625621292173,3.92430612,34233.0,34232.0,0.24483937]
[1625621293615,3.92430612,34233.0,34232.0,1.2726755]
[1625621295298,3.92430612,34233.0,34232.0,2.47071105]
[1625621295477,3.92430612,34233.0,34232.0,1.2726755]
[1625621295600,3.92430612,34233.0,34232.0,1.26841157]
[1625621295718,5.47357965,34233.0,34232.0,0.24057544]
[1625621304249,5.71599965,34233.0,34232.0,0.24057544]
[1625621308940,5.71599965,34233.0,34232.0,0.22557544]
[1625621309362,6.40474429,34233.0,34232.0,0.22557544]
[1625621309481,6.40474429,34233.0,34231.0,0.68419146]
[1625621309603,6.40474429,34233.0,34229.0,0.68446249]
[1625621309723,0.01412994,34232.0,34229.0,0.68446249]
[1625621309845,0.057,34229.0,34228.0,0.6845576]
[1625621310029,5.99904372,34229.0,34226.0,0.68458523]
[1625621310267,4.30498689,34227.0,34226.0,0.68458523]
[1625621310446,4.36198689,34227.0,34226.0,0.68458523]
[1625621310568,4.37611753,34227.0,34226.0,0.68458523]
[1625621310689,10.9023772,34227.0,34226.0,0.68458523]
[1625621310871,11.38352808,34227.0,34226.0,0.68458523]
[1625621311353,12.38352808,34227.0,34226.0,0.68458523]
[1625621311475,12.38352808,34227.0,34221.0,0.68409095]
[1625621311594,0.0864,34226.0,34218.0,1.08198655]
[1625621311714,4.13160412,34222.0,34216.0,1.19753916]
[1625621311835,0.057,34221.0,34216.0,1.18753916]
[1625621312015,1.43430472,34217.0,34211.0,1.36994595]
[1625621312315,0.057,34211.0,34209.0,1.37107096]
[1625621312494,0.32353,34211.0,34204.0,1.37292242]
[1625621312735,1.37753892,34205.0,34203.0,1.37366965]
[1625621312854,0.96230176,34204.0,34203.0,1.37366965]
[1625621312975,1.29252176,34204.0,34202.0,1.37388625]
[1625621313097,4.7439,34203.0,34202.0,1.37388625]
[1625621313216,4.7439,34203.0,34199.0,1.54537836]
[1625621313398,4.7439,34203.0,34201.0,1.37158913]
[1625621314897,4.7439,34203.0,34202.0,0.24057544]
[1625621318569,0.96230176,34204.0,34202.0,0.24057544]
[1625621319952,0.96230176,34204.0,34202.0,0.47505544]
[1625621320191,0.48115088,34204.0,34202.0,0.47505544]
[1625621320554,0.24057544,34204.0,34202.0,0.47505544]
[1625621320853,0.057,34211.0,34203.0,1.36683356]
[1625621320973,0.24057544,34214.0,34210.0,0.77341088]
[1625621322956,0.24057544,34211.0,34210.0,0.48115088]
[1625621325602,0.24057544,34211.0,34205.0,0.24057544]
[1625621326023,0.24057544,34211.0,34202.0,0.24057544]
[1625621326383,4.6113,34208.0,34202.0,0.24057544]
[1625621326984,4.6113,34208.0,34206.0,0.24057544]
[1625621328550,0.01,34209.0,34206.0,0.24057544]
[1625621328789,0.01,34209.0,34202.0,0.24057544]
[1625621328970,0.48115088,34203.0,34202.0,0.24057544]
[1625621334081,0.24057544,34203.0,34202.0,0.24057544]
[1625621334207,0.24057544,34203.0,34202.0,1.43335699]
[1625621334744,0.24057544,34203.0,34202.0,2.79548599]
[1625621335104,0.24057544,34211.0,34202.0,2.79548599]
[1625621335224,0.24057544,34211.0,34209.0,4.5334]
[1625621335403,0.24057544,34211.0,34209.0,4.81497]
[1625621336966,0.24057544,34211.0,34210.0,0.24057544]
[1625621341780,0.24057544,34211.0,34210.0,0.2448385]
[1625621343164,0.24057544,34211.0,34210.0,0.5640085]
[1625621343945,0.24057544,34211.0,34210.0,0.55974544]
[1625621344189,0.25473228,34211.0,34210.0,0.55974544]
[1625621344428,0.24057544,34211.0,34210.0,0.55974544]
[1625621345449,0.25473199,34211.0,34210.0,0.24057544]
[1625621349836,0.25473199,34211.0,34210.0,0.24483874]
[1625621351222,0.25473199,34211.0,34210.0,0.24057544]
[1625621351343,0.76729171,34211.0,34210.0,0.24057544]
[1625621351462,1.11333171,34211.0,34210.0,0.24057544]
[1625621351585,2.13776226,34211.0,34210.0,0.24057544]
[1625621352065,1.11333171,34211.0,34210.0,0.24057544]
[1625621353026,1.11333171,34211.0,34210.0,0.24483894]
[1625621356512,1.11333171,34211.0,34210.0,0.24057544]
[1625621357776,2.13763215,34211.0,34210.0,0.24057544]
[1625621359461,2.13763215,34211.0,34210.0,0.23477544]
[1625621359582,7.07873215,34211.0,34210.0,0.22847544]
[1625621360121,7.07873215,34211.0,34205.0,0.51367028]
[1625621360242,0.0879,34210.0,34205.0,0.51367028]
[1625621360362,0.5123223,34208.0,34205.0,0.51367028]
[1625621360483,0.5123223,34208.0,34206.0,0.00426375]
[1625621360666,0.51216825,34207.0,34206.0,0.00426375]
[1625621360786,0.52631697,34207.0,34206.0,0.00426375]
[1625621361083,0.48115088,34206.0,34205.0,0.00426648]
[1625621361205,0.99334042,34206.0,34205.0,0.00426648]
[1625621361324,0.99334042,34206.0,34203.0,0.51420697]
[1625621361563,1.09638938,34206.0,34205.0,0.00426655]
[1625621361806,1.09638938,34206.0,34204.0,0.00426655]
[1625621362045,0.01414907,34205.0,34204.0,0.00426655]
[1625621362169,0.52601531,34205.0,34204.0,0.00426655]
[1625621363129,0.76659075,34205.0,34204.0,0.00426655]
[1625621363429,1.79040484,34205.0,34204.0,0.00426655]
[1625621363732,1.79040484,34205.0,34202.0,0.51471424]
[1625621363850,1.79040484,34205.0,34203.0,0.51471504]
[1625621364211,0.52593021,34204.0,34203.0,0.51471504]
[1625621364630,0.52593021,34204.0,34203.0,0.51898252]
[1625621365113,0.51177927,34204.0,34203.0,0.51898252]
[1625621365713,0.52593011,34204.0,34203.0,0.51898252]
[1625621365836,4.62795011,34204.0,34203.0,0.51898252]
[1625621365955,4.61379927,34204.0,34203.0,0.51898252]
[1625621366258,0.30702,34204.0,34203.0,1.54924321]
[1625621366497,0.30702,34204.0,34203.0,2.75120265]
[1625621366856,0.75263963,34205.0,34203.0,2.75120265]
[1625621366979,0.24057544,34205.0,34203.0,3.04433265]
[1625621367157,0.75280754,34205.0,34204.0,2.74899252]
[1625621367338,0.75280754,34205.0,34204.0,2.75325965]
[1625621367518,0.24057544,34205.0,34204.0,2.75325965]
[1625621368179,0.24057544,34205.0,34204.0,4.12883388]
[1625621368302,0.75346152,34205.0,34204.0,4.12883388]
[1625621368484,0.24057544,34205.0,34204.0,4.12883388]
[1625621368783,0.75317037,34205.0,34204.0,4.12883388]
[1625621369382,1.77917104,34205.0,34204.0,4.12883388]
[1625621370166,1.79332107,34205.0,34204.0,4.12883388]
[1625621370406,2.98940271,34205.0,34204.0,2.75325965]
[1625621371558,2.98940271,34205.0,34204.0,4.13122738]
[1625621371731,3.67249655,34205.0,34204.0,4.82021082]
[1625621372630,4.02224655,34205.0,34204.0,4.82021082]
[1625621374192,5.38626752,34205.0,34204.0,3.44224309]
[1625621374612,5.38626752,34205.0,34204.0,2.23955886]
[1625621375092,5.38626752,34205.0,34204.0,2.23529173]
[1625621375455,10.62016752,34205.0,34204.0,2.23529173]
[1625621375695,10.62016752,34205.0,34204.0,2.23955936]
[1625621377680,10.70816752,34205.0,34204.0,2.23955936]
[1625621377919,10.70816752,34205.0,34204.0,2.23529173]
[1625621378284,10.62016752,34205.0,34204.0,2.23529173]
[1625621378521,10.62016752,34205.0,34204.0,2.23955933]
[1625621379242,10.70796752,34205.0,34204.0,2.23955933]
[1625621379363,10.62016752,34205.0,34204.0,2.23955933]
[1625621382915,10.62016752,34205.0,34204.0,2.51484933]
[1625621384176,5.38626752,34205.0,34204.0,2.51484933]
[1625621384416,5.03651752,34205.0,34204.0,2.51484933]
[1625621384657,2.46226488,34205.0,34204.0,5.09790854]
[1625621384839,1.43626421,34205.0,34204.0,5.09790854]
[1625621385139,0.75317037,34205.0,34204.0,6.64761213]
[1625621385257,0.75317037,34205.0,34204.0,6.88818757]
[1625621385381,0.85578823,34206.0,34204.0,6.88818757]
[1625621385497,1.02670636,34208.0,34204.0,6.88818757]
[1625621385740,1.19779557,34210.0,34205.0,5.16908116]
[1625621385741,1.02721323,34210.0,34205.0,5.16908116]
[1625621385983,0.9933,34220.0,34205.0,5.16908116]
[1625621385984,1.02781591,34213.0,34209.0,10.12288266]
[1625621386282,1.02814046,34214.0,34212.0,3.84810807]
[1625621386460,1.0282248,34215.0,34213.0,3.61415316]
[1625621386642,1.37090929,34219.0,34213.0,3.61415316]
[1625621386643,1.02839347,34216.0,34214.0,3.61407078]
[1625621386763,1.02839347,34216.0,34214.0,3.6183401]
[1625621386882,1.02839347,34216.0,34215.0,3.61392743]
[1625621387001,1.02839347,34216.0,34215.0,3.61819644]
[1625621387181,1.02873279,34218.0,34215.0,3.61819644]
[1625621387303,1.02873279,34218.0,34217.0,0.24057544]
[1625621387422,1.02873279,34218.0,34217.0,3.85427521]
[1625621387784,1.02873279,34218.0,34217.0,3.85854401]
[1625621387903,1.02896282,34219.0,34217.0,3.85854401]
[1625621388145,1.02896282,34219.0,34218.0,3.61360802]
[1625621388263,1.02896282,34219.0,34218.0,7.31180802]
[1625621388383,1.26884901,34220.0,34218.0,7.31607663]
[1625621388687,1.26884901,34220.0,34219.0,3.61170633]
[1625621388807,1.26884901,34220.0,34219.0,3.83919469]
[1625621388924,0.24057544,34220.0,34219.0,3.83919469]
[1625621389166,0.24057544,34220.0,34219.0,3.83492633]
[1625621389588,1.26946311,34223.0,34219.0,3.83492633]
[1625621389827,1.26946311,34223.0,34222.0,3.61109802]
[1625621390307,0.24057544,34223.0,34222.0,2.23544163]
[1625621390609,0.24057544,34223.0,34222.0,3.61010617]
[1625621390847,0.24057544,34223.0,34222.0,2.23544163]
[1625621391268,0.24057544,34223.0,34222.0,2.47601707]
[1625621392412,1.2675586,34223.0,34222.0,1.27231773]
[1625621393916,1.2675586,34223.0,34222.0,0.24057544]
[1625621395656,0.55287544,34223.0,34222.0,0.24057544]
[1625621395899,1.57927558,34223.0,34222.0,0.24057544]
[1625621396618,2.77580921,34223.0,34222.0,0.24057544]
[1625621397038,4.14294282,34223.0,34222.0,0.24057544]
[1625621397765,4.14294282,34223.0,34217.0,0.24057544]
[1625621397999,1.02491835,34220.0,34217.0,0.24057544]
[1625621398241,1.02491835,34220.0,34217.0,4.77217544]
[1625621398482,1.02491835,34220.0,34217.0,5.80169263]
[1625621398722,1.024997,34221.0,34217.0,5.80169263]
[1625621399142,1.02486159,34220.0,34217.0,5.80169263]
[1625621399322,0.24057544,34218.0,34217.0,5.80169263]
[1625621399442,0.41152153,34218.0,34217.0,5.80169263]
[1625621401307,0.24057544,34218.0,34217.0,5.80169263]
[1625621401547,0.24057544,34218.0,34217.0,7.0025453]
[1625621402633,0.17114002,34222.0,34217.0,8.37464927]
[1625621402753,0.17114002,34222.0,34217.0,8.69900927]
[1625621402934,0.17117181,34223.0,34221.0,1.02902885]
[1625621403231,0.17121736,34224.0,34222.0,1.02902121]
[1625621403354,0.17121736,34224.0,34223.0,0.48115088]
[1625621403472,0.17125929,34225.0,34223.0,1.51014242]
[1625621403711,0.17125111,34226.0,34224.0,1.02867113]
[1625621403831,0.17125111,34226.0,34224.0,1.27889113]
[1625621404013,1.19773132,34230.0,34225.0,1.02861697]
[1625621404014,0.17121861,34227.0,34225.0,1.02861697]
[1625621404735,1.0264564,34230.0,34228.0,2.425e-05]
[1625621404854,1.02662565,34232.0,34228.0,2.425e-05]
[1625621404974,0.40390141,34234.0,34228.0,2.425e-05]
[1625621405396,0.40390141,34234.0,34233.0,0.72172632]
[1625621405579,0.24057544,34239.0,34233.0,1.06430632]
[1625621407322,0.24057544,34239.0,34238.0,0.24057544]
[1625621415135,0.25468726,34239.0,34238.0,0.24057544]
[1625621416880,0.24057544,34239.0,34238.0,0.24057544]
[1625621417299,0.25468637,34239.0,34238.0,0.24057544]
[1625621417419,1.03774725,34239.0,34229.0,0.24057544]
[1625621417600,0.057,34238.0,34229.0,0.24057544]
[1625621417718,0.07111163,34238.0,34229.0,0.24057544]
[1625621417958,0.01411176,34237.0,34229.0,0.24057544]
[1625621419519,0.81924088,34230.0,34229.0,0.24057544]
[1625621422588,0.48115088,34230.0,34229.0,0.24057544]
[1625621423067,0.24057544,34230.0,34229.0,0.24057544]
[1625621423548,0.24057544,34230.0,34229.0,0.48115088]
[1625621424932,0.24057544,34230.0,34229.0,0.73569088]
[1625621429738,0.24057544,34230.0,34229.0,0.48115088]
[1625621429979,0.49347878,34230.0,34229.0,0.48115088]
[1625621431602,0.73405422,34230.0,34229.0,0.48115088]
[1625621436230,0.49347878,34230.0,34229.0,0.48115088]
[1625621436351,0.25470878,34230.0,34229.0,0.48115088]
[1625621436592,0.25470878,34230.0,34229.0,0.81790088]
[1625621436711,0.25470878,34230.0,34229.0,0.82216846]
[1625621438335,0.60160878,34230.0,34229.0,0.48541846]
[1625621438575,0.68728071,34230.0,34229.0,0.48541846]
[1625621438817,0.60160878,34230.0,34229.0,0.48541846]
[1625621439599,0.84218422,34230.0,34229.0,0.48115088]
[1625621439900,0.84218422,34230.0,34229.0,0.48541869]
[1625621440803,0.49528422,34230.0,34229.0,0.48541869]
[1625621441105,0.25470878,34230.0,34229.0,0.48541869]
[1625621441523,0.25470878,34230.0,34229.0,0.57062405]
[1625621442665,0.25470878,34230.0,34229.0,0.48541869]
[1625621442907,0.25470878,34230.0,34229.0,0.57071534]
[1625621443147,1.28433285,34230.0,34229.0,0.57071534]
[1625621443812,1.28433285,34230.0,34229.0,0.48541869]
[1625621443989,1.28433285,34230.0,34229.0,0.57084585]
[1625621444471,2.48699408,34230.0,34229.0,0.48541869]
[1625621445309,3.86147472,34230.0,34229.0,0.48541869]
[1625621445550,3.86147472,34230.0,34229.0,1.16966813]
[1625621445551,3.17429422,34230.0,34229.0,1.16966813]
[1625621446874,3.17429422,34230.0,34229.0,2.19625909]
[1625621449340,3.44216422,34230.0,34229.0,2.19625909]
[1625621450421,3.20158878,34230.0,34229.0,2.19625909]
[1625621450542,2.93371878,34230.0,34229.0,2.19625909]
[1625621451683,3.17429422,34230.0,34229.0,2.19625909]
[1625621453852,2.93371878,34230.0,34229.0,2.19625909]
[1625621456433,3.22247878,34230.0,34229.0,2.19625909]
[1625621456735,4.59838641,34230.0,34229.0,2.19625909]
[1625621457034,8.29108641,34230.0,34229.0,2.19625909]
[1625621457397,4.59838641,34230.0,34229.0,1.16966813]
[1625621457698,5.07953729,34230.0,34229.0,1.16966813]
[1625621458357,5.07953729,34230.0,34229.0,2.19761667]
[1625621460584,5.07953729,34230.0,34229.0,1.95704123]
[1625621460825,5.07953729,34230.0,34229.0,1.71646579]
[1625621460945,6.62869161,34230.0,34229.0,0.68851725]
[1625621461126,6.66319943,34230.0,34228.0,0.68598876]
[1625621461426,5.86687892,34229.0,34228.0,0.68598876]
[1625621461606,4.31769192,34229.0,34228.0,0.68598876]
[1625621461727,4.55826736,34229.0,34228.0,0.68598876]
[1625621461906,6.1078145,34229.0,34228.0,0.6902436]
[1625621462206,6.14232339,34229.0,34228.0,0.68598876]
[1625621462326,6.14232339,34229.0,34226.0,0.68662746]
[1625621462688,5.85437136,34227.0,34225.0,0.68713224]
[1625621462926,5.85450221,34226.0,34224.0,0.68727372]
[1625621463048,5.90318764,34226.0,34224.0,0.68727372]
[1625621463168,5.85465363,34225.0,34223.0,0.68746966]
[1625621463291,5.90334494,34225.0,34223.0,0.68746966]
[1625621463410,5.85512333,34224.0,34222.0,0.68773638]
[1625621463531,5.90381476,34224.0,34222.0,0.68773638]
[1625621463651,5.90381476,34224.0,34221.0,1.03160458]
[1625621463652,5.85257469,34223.0,34221.0,0.68756238]
[1625621463770,6.61502155,34223.0,34221.0,0.68756238]
[1625621463950,5.85273432,34222.0,34220.0,0.68762864]
[1625621464132,5.85293585,34221.0,34219.0,0.68795107]
[1625621464310,5.9016306,34221.0,34219.0,0.68795107]
[1625621464431,5.85307812,34220.0,34218.0,0.68799891]
[1625621464611,5.0786,34219.0,34218.0,0.68799891]
[1625621464732,10.93173128,34219.0,34217.0,0.68821737]
[1625621464850,4.3038662,34218.0,34217.0,0.68821737]
[1625621465091,4.31804309,34218.0,34217.0,0.69247734]
[1625621465335,5.86729577,34218.0,34217.0,0.00425997]
[1625621465633,4.31804309,34218.0,34217.0,0.00425997]
[1625621465811,4.79919397,34218.0,34217.0,0.00425997]
[1625621465930,4.79919397,34218.0,34216.0,0.69224677]
[1625621466051,4.30090454,34217.0,34216.0,1.03589499]
[1625621466172,4.30090454,34217.0,34216.0,1.03163487]
[1625621466298,2.92466325,34217.0,34216.0,1.71939452]
[1625621467495,2.93883987,34217.0,34216.0,1.71939452]
[1625621467615,3.16942987,34217.0,34216.0,1.71939452]
[1625621467739,3.41000531,34217.0,34216.0,1.71939452]
[1625621468217,4.78252867,34217.0,34216.0,0.68775965]
[1625621468401,4.85525205,34217.0,34216.0,0.68775965]
[1625621468520,3.48272869,34217.0,34216.0,0.68775965]
[1625621468816,3.39582869,34217.0,34216.0,0.68775965]
[1625621469897,4.76900262,34217.0,34216.0,0.68775965]
[1625621470620,4.76900262,34217.0,34215.0,0.68749028]
[1625621470799,2.91935787,34216.0,34215.0,0.68749028]
[1625621471701,2.91935787,34216.0,34214.0,0.68730452]
[1625621471940,2.9208677,34215.0,34214.0,0.68730452]
[1625621472240,2.9208677,34215.0,34213.0,0.68734003]
[1625621472422,2.91993167,34214.0,34213.0,0.68734003]
[1625621472840,2.91993167,34214.0,34213.0,0.67934003]
[1625621473622,3.00793167,34214.0,34211.0,1.03060458]
[1625621473862,1.27042912,34212.0,34211.0,1.03060458]
[1625621474702,0.24057544,34212.0,34211.0,1.03060458]
[1625621474943,1.26992356,34212.0,34211.0,1.03060458]
[1625621475181,0.24057544,34212.0,34211.0,1.03060458]
[1625621475546,0.24057544,34212.0,34211.0,1.02280458]
[1625621475725,0.75528506,34212.0,34211.0,1.53790792]
[1625621476083,0.9958605,34212.0,34211.0,1.53790792]
[1625621476567,0.9958605,34212.0,34211.0,0.51510334]
[1625621476987,0.9958605,34212.0,34211.0,0.51110334]
[1625621477108,0.9958605,34212.0,34211.0,0.08583181]
[1625621477289,2.19465808,34212.0,34211.0,0.08583181]
[1625621477588,0.9958605,34212.0,34210.0,0.08579859]
[1625621477708,1.6795159,34212.0,34210.0,0.08579859]
[1625621478010,0.24057544,34211.0,34210.0,0.08579859]
[1625621478491,0.24057544,34211.0,34209.0,0.08577245]
[1625621479093,5.222,34210.0,34209.0,0.08577245]
[1625621479214,5.52278,34210.0,34209.0,0.08577245]
[1625621479635,5.61078,34210.0,34209.0,0.08577245]
[1625621480958,5.61078,34210.0,34208.0,0.08573522]
[1625621482160,0.24057544,34209.0,34208.0,0.08573522]
[1625621482398,0.24057544,34209.0,34204.0,1.19985776]
[1625621482399,0.32618285,34209.0,34204.0,1.19985776]
[1625621482579,0.24057544,34209.0,34205.0,1.19964227]
[1625621482757,0.24057544,34209.0,34205.0,1.54262227]
[1625621484081,0.24057544,34209.0,34207.0,0.24057544]
[1625621487022,0.41457,34208.0,34207.0,0.24057544]
[1625621487202,0.32757,34208.0,34207.0,0.24057544]
[1625621488222,0.32757,34208.0,34205.0,1.19918399]
[1625621488465,0.32757,34208.0,34204.0,1.19912487]
[1625621488645,0.32757,34208.0,34206.0,0.00425722]
[1625621488944,0.32757,34208.0,34205.0,0.00425736]
[1625621489244,0.32757,34208.0,34207.0,0.0042574]
[1625621489427,0.0141871,34207.0,34206.0,0.00425742]
[1625621489724,0.0141871,34207.0,34204.0,0.00425747]
[1625621490207,0.24057544,34205.0,34204.0,0.00425747]
[1625621491048,0.24057544,34205.0,34203.0,0.00425752]
[1625621492129,0.24057544,34204.0,34203.0,0.00425752]
[1625621492851,0.32857544,34204.0,34203.0,0.00425752]
[1625621493153,0.24057544,34204.0,34203.0,0.00425752]
[1625621497912,0.32847544,34204.0,34203.0,0.08988738]
[1625621498207,0.41340113,34204.0,34203.0,0.00425752]
[1625621498447,0.32847544,34204.0,34203.0,0.00425752]
[1625621498747,0.41336504,34204.0,34202.0,0.0042919]
[1625621499050,0.32847544,34204.0,34203.0,0.00429224]
[1625621499647,0.32847544,34204.0,34200.0,0.00429238]
[1625621499767,0.32847544,34204.0,34199.0,0.08562769]
[1625621499887,0.08484118,34202.0,34199.0,0.08562769]
[1625621500006,0.08484118,34202.0,34200.0,0.00429223]
[1625621500247,0.48115088,34201.0,34200.0,0.00429223]
[1625621500368,0.77362088,34201.0,34200.0,0.00429223]
[1625621501034,0.86212088,34201.0,34199.0,0.08560941]
[1625621501391,0.86212088,34201.0,34200.0,0.08986713]
[1625621502354,0.86212088,34201.0,34200.0,0.00426132]
[1625621502535,0.77362088,34201.0,34200.0,0.08986919]
[1625621502774,0.77362088,34201.0,34200.0,0.00426132]
[1625621502894,0.48115088,34201.0,34200.0,0.00426132]
[1625621503256,0.48115088,34201.0,34198.0,0.00425841]
[1625621503495,0.48115088,34201.0,34200.0,0.00425827]
[1625621503675,0.48115088,34201.0,34199.0,1.20260641]
[1625621503977,0.48115088,34201.0,34200.0,1.20255668]
[1625621504276,0.48115088,34201.0,34200.0,1.68370756]
[1625621506139,0.48115088,34201.0,34200.0,2.71109022]
[1625621506978,0.48115088,34201.0,34200.0,1.51279144]
[1625621507099,0.56965088,34201.0,34200.0,1.51279144]
[1625621509142,0.91977088,34201.0,34200.0,1.51279144]
[1625621510102,0.83127088,34201.0,34200.0,1.51279144]
[1625621510405,0.83127088,34201.0,34200.0,0.48540878]
[1625621510406,4.78107088,34201.0,34200.0,0.48540878]
[1625621510525,4.78107088,34201.0,34200.0,0.24483334]
[1625621510823,4.78107088,34201.0,34200.0,0.0042579]
[1625621512266,4.78107088,34201.0,34200.0,0.34697732]
[1625621512267,4.86887088,34201.0,34200.0,0.34697732]
[1625621512507,4.86588691,34201.0,34200.0,0.43268236]
[1625621512747,4.78107088,34201.0,34200.0,0.43268236]
[1625621513408,5.20463652,34201.0,34200.0,0.08996294]
[1625621513527,5.29113652,34201.0,34200.0,0.08996294]
[1625621513707,5.20632182,34201.0,34200.0,0.0042579]
[1625621513829,5.11982182,34201.0,34200.0,0.0042579]
[1625621514851,5.20802182,34201.0,34200.0,0.0042579]
[1625621515156,4.86927088,34201.0,34200.0,0.0042579]
[1625621515450,4.86927088,34201.0,34200.0,0.09003809]
[1625621515993,4.86927088,34201.0,34200.0,0.0042579]
[1625621516355,5.10984632,34201.0,34200.0,0.0042579]
[1625621516472,5.12403298,34201.0,34200.0,0.0042579]
[1625621516593,6.14044863,34201.0,34200.0,0.0042579]
[1625621516714,6.03806197,34201.0,34200.0,0.0042579]
[1625621517256,6.05224855,34201.0,34200.0,0.0042579]
[1625621517555,6.03806197,34201.0,34200.0,0.34768003]
[1625621517734,6.12496197,34201.0,34200.0,0.34768003]
[1625621519116,6.12496197,34201.0,34200.0,0.43352815]
[1625621519297,6.12496197,34201.0,34200.0,0.09010602]
[1625621519539,6.12496197,34201.0,34200.0,0.3478306]
[1625621520199,7.31352986,34201.0,34200.0,0.43372516]
[1625621520319,7.22662986,34201.0,34200.0,0.43372516]
[1625621520438,6.03806197,34201.0,34200.0,0.3478306]
[1625621520981,6.03806197,34201.0,34200.0,0.3435727]
[1625621521338,6.12506197,34201.0,34200.0,0.3435727]
[1625621521879,6.13912423,34201.0,34200.0,0.3435727]
[1625621522423,7.3278741,34201.0,34200.0,0.3435727]
[1625621522724,7.3278741,34201.0,34200.0,0.42950345]
[1625621523145,7.3278741,34201.0,34200.0,0.3435727]
[1625621523623,7.2408741,34201.0,34200.0,0.3435727]
[1625621523862,7.2408741,34201.0,34200.0,0.42951204]
[1625621524643,7.3286741,34201.0,34200.0,0.42951204]
[1625621524765,7.3286741,34201.0,34200.0,0.08593934]
[1625621525188,8.68698033,34201.0,34199.0,0.42965074]
[1625621525546,2.2066724,34200.0,34199.0,0.08593126]
[1625621525668,2.22073872,34200.0,34199.0,0.08593126]
[1625621526689,2.22073872,34200.0,34199.0,0.42969207]
[1625621527169,2.22073872,34200.0,34199.0,0.08593126]
[1625621529094,2.22073872,34200.0,34199.0,0.42968927]
[1625621529215,2.2951724,34200.0,34199.0,0.42968927]
[1625621529337,2.2951724,34200.0,34199.0,0.34375801]
[1625621529881,2.2066724,34200.0,34199.0,0.34375801]
[1625621530478,2.2066724,34200.0,34199.0,0.08593854]
[1625621530779,2.2066724,34200.0,34199.0,0.42969399]
[1625621531019,2.2066724,34200.0,34199.0,0.08593854]
[1625621531500,3.56488401,34200.0,34199.0,0.08593854]
[1625621531800,3.57895152,34200.0,34197.0,0.42975869]
[1625621532099,2.20479911,34198.0,34197.0,0.08595174]
[1625621532402,2.44537455,34198.0,34197.0,0.08595174]
[1625621532766,2.44537455,34198.0,34196.0,0.34381336]
[1625621532767,3.8014667,34198.0,34196.0,0.08594439]
[1625621533003,4.23693434,34197.0,34195.0,0.08594591]
[1625621533243,2.88100152,34196.0,34195.0,0.08594591]
[1625621533423,3.10467152,34196.0,34195.0,0.08594591]
[1625621534447,3.34524696,34196.0,34195.0,0.08594591]
[1625621534986,3.34524696,34196.0,34194.0,0.34378365]
[1625621534987,3.34524696,34196.0,34194.0,2.956e-05]
[1625621535231,4.23287653,34195.0,34189.0,0.34377934]
[1625621535348,4.24694666,34195.0,34189.0,0.34377934]
[1625621535468,4.24694666,34195.0,34185.0,1.20322771]
[1625621535469,2.87814237,34190.0,34186.0,0.68759704]
[1625621535707,0.67686947,34187.0,34185.0,0.68720767]
[1625621535827,0.93894947,34187.0,34185.0,0.68720767]
[1625621535947,0.93894947,34187.0,34185.0,0.64440767]
[1625621536189,1.69154923,34186.0,34184.0,0.68722998]
[1625621536428,1.69154923,34186.0,34182.0,1.03085018]
[1625621536429,0.72172632,34185.0,34182.0,1.03085018]
[1625621536550,4.5307,34184.0,34182.0,1.03085018]
[1625621537329,0.0865,34183.0,34181.0,1.03094808]
[1625621538413,0.24057544,34182.0,34181.0,1.03094808]
[1625621539672,0.24057544,34182.0,34180.0,1.02968968]
[1625621540214,0.24057544,34182.0,34179.0,1.02976849]
[1625621540334,0.24057544,34182.0,34180.0,1.0297708]
[1625621540452,0.24057544,34182.0,34180.0,1.2682108]
[1625621540576,0.24057544,34182.0,34181.0,1.02975365]
[1625621540874,0.24057544,34182.0,34181.0,5.34215365]
[1625621541775,0.24057544,34182.0,34181.0,7.91621894]
[1625621542254,0.24057544,34182.0,34181.0,3.60381894]
[1625621542495,0.24057544,34182.0,34181.0,3.84439438]
[1625621547721,0.24057544,34182.0,34181.0,2.47155956]
[1625621549103,0.24057544,34182.0,34181.0,2.23098412]
[1625621549344,0.24057544,34182.0,34179.0,1.02961161]
[1625621549464,0.089,34181.0,34179.0,1.02961161]
[1625621549584,0.24057544,34182.0,34179.0,1.02961161]
[1625621550064,0.24057544,34182.0,34177.0,1.20121354]
[1625621550065,0.24057544,34182.0,34180.0,1.02937502]
[1625621550304,0.24057544,34182.0,34181.0,1.02935241]
[1625621551148,0.24057544,34182.0,34180.0,1.02947659]
[1625621551268,0.24057544,34182.0,34179.0,1.20091115]
[1625621551269,0.24057544,34182.0,34181.0,1.02945773]
[1625621551388,0.24057544,34182.0,34181.0,1.30349773]
[1625621551688,0.24057544,34182.0,34181.0,0.27404]
[1625621551868,0.24057544,34182.0,34181.0,2.50442453]
[1625621552528,0.24057544,34182.0,34181.0,2.74929189]
[1625621553552,0.24057544,34182.0,34181.0,2.74499997]
[1625621553791,0.24057544,34182.0,34181.0,1.30344824]
[1625621554033,0.24057544,34182.0,34181.0,0.27404]
[1625621554153,0.24057544,34182.0,34180.0,1.02947963]
[1625621554271,0.088,34181.0,34180.0,1.02947963]
[1625621555833,0.38667,34181.0,34180.0,0.98217963]
[1625621555955,0.38667,34181.0,34179.0,1.20105957]
[1625621555956,0.29867,34181.0,34178.0,1.02952456]
[1625621556195,0.29867,34181.0,34179.0,0.17159373]
[1625621556196,0.46799819,34181.0,34179.0,0.17159373]
[1625621556435,0.16936774,34180.0,34179.0,0.17159373]
[1625621556555,0.40994318,34180.0,34179.0,0.17159373]